[Event "*** SCC Grand Prix: Titled Tuesday Blitz"]
[Site "Chess.com"]
[Date "2020.07.07"]
[Round "5"]
[White "Rish_97"]
[Black "Alexander_Zubov"]
[Result "1-0"]
[WhiteElo "2666"]
[BlackElo "2932"]
[TimeControl "180+1"]
[EndTime "10:54:39 PDT"]
[Termination "Rish_97 won by resignation"]

1. d4 {[%clk 0:03:00.9]} 1... Nf6 {[%clk 0:02:59.1]} 2. Nf3 {[%clk 0:03:00.1]}
2... g6 {[%clk 0:02:59.1]} 3. g3 {[%clk 0:02:52.4]} 3... d5 {[%clk 0:02:57.4]}
4. Bg2 {[%clk 0:02:52.3]} 4... c6 {[%clk 0:02:57.2]} 5. O-O {[%clk 0:02:52.5]}
5... Bg7 {[%clk 0:02:56.6]} 6. c4 {[%clk 0:02:52.8]} 6... dxc4 {[%clk
0:02:56.5]} 7. a4 {[%clk 0:02:32.3]} 7... O-O {[%clk 0:02:47.8]} 8. Na3 {[%clk
0:02:32.5]} 8... Na6 {[%clk 0:02:43.1]} 9. Nxc4 {[%clk 0:02:32.3]} 9... Be6
{[%clk 0:02:42.6]} 10. b3 {[%clk 0:02:31.7]} 10... Bd5 {[%clk 0:02:39.5]} 11.
Ba3 {[%clk 0:02:31.9]} 11... Ne4 {[%clk 0:02:23.7]} 12. Rc1 {[%clk 0:02:28.1]}
12... c5 {[%clk 0:02:18.2]} 13. dxc5 {[%clk 0:01:56.3]} 13... Naxc5 {[%clk
0:01:46.8]} 14. Ne3 {[%clk 0:01:44.1]} 14... Bxb3 {[%clk 0:01:08.9]} 15. Qxd8
{[%clk 0:01:43.8]} 15... Rfxd8 {[%clk 0:01:09]} 16. Bxc5 {[%clk 0:01:44.7]}
16... Nxc5 {[%clk 0:00:47.2]} 17. Rxc5 {[%clk 0:01:45.6]} 17... Bxa4 {[%clk
0:00:47.2]} 18. Nh4 {[%clk 0:01:03.7]} 18... Rd7 {[%clk 0:00:42.9]} 19. Rb1
{[%clk 0:01:01.3]} 19... Bd4 {[%clk 0:00:24.2]} 20. Rc4 {[%clk 0:00:57.2]} 20...
b5 {[%clk 0:00:13.8]} 21. Rxd4 {[%clk 0:00:49.1]} 21... Rxd4 {[%clk 0:00:12.8]}
22. Bxa8 {[%clk 0:00:49.1]} 22... a5 {[%clk 0:00:12.1]} 23. Bc6 {[%clk
0:00:46.7]} 1-0

[Event "*** SCC Grand Prix: Titled Tuesday Blitz"]
[Site "Chess.com"]
[Date "2020.07.07"]
[Round "5"]
[White "IMUffeVinther-Schou"]
[Black "Stormeman100100"]
[Result "1-0"]
[WhiteElo "2279"]
[BlackElo "2423"]
[TimeControl "180+1"]
[EndTime "10:54:40 PDT"]
[Termination "IMUffeVinther-Schou won by resignation"]

1. e4 {[%clk 0:03:00.9]} 1... e5 {[%clk 0:02:57.3]} 2. Nf3 {[%clk 0:03:00.1]}
2... Nc6 {[%clk 0:02:56.8]} 3. Nc3 {[%clk 0:02:59.4]} 3... Nf6 {[%clk
0:02:55.9]} 4. Bb5 {[%clk 0:02:58.5]} 4... Nd4 {[%clk 0:02:53.1]} 5. Bc4 {[%clk
0:02:57.3]} 5... Bc5 {[%clk 0:02:36.4]} 6. d3 {[%clk 0:02:55.8]} 6... d6 {[%clk
0:02:33.5]} 7. Na4 {[%clk 0:02:53.5]} 7... Bg4 {[%clk 0:02:27.2]} 8. Nxc5 {[%clk
0:02:45.7]} 8... dxc5 {[%clk 0:02:18.9]} 9. Bxf7+ {[%clk 0:02:43.7]} 9... Kxf7
{[%clk 0:02:19.1]} 10. Nxe5+ {[%clk 0:02:42.9]} 10... Kg8 {[%clk 0:02:13.9]} 11.
Nxg4 {[%clk 0:02:41.4]} 11... Nxg4 {[%clk 0:02:14.8]} 12. c3 {[%clk 0:02:37.8]}
12... Ne5 {[%clk 0:01:57.2]} 13. cxd4 {[%clk 0:02:33.7]} 13... Qxd4 {[%clk
0:01:57]} 14. O-O {[%clk 0:02:08.3]} 14... Nxd3 {[%clk 0:01:39.9]} 15. Qb3+
{[%clk 0:01:58.4]} 15... c4 {[%clk 0:01:38.4]} 16. Qxb7 {[%clk 0:01:57.1]} 16...
Rf8 {[%clk 0:01:23.5]} 17. Be3 {[%clk 0:01:55.2]} 17... Qxb2 {[%clk 0:01:20]}
18. Qd5+ {[%clk 0:01:54]} 18... Rf7 {[%clk 0:01:09.6]} 19. Rab1 {[%clk
0:01:53.1]} 19... c6 {[%clk 0:00:54.5]} 20. Qe6 {[%clk 0:01:43.5]} 20... Qe5
{[%clk 0:00:50.4]} 21. Qxc4 {[%clk 0:01:34.9]} 21... Nf4 {[%clk 0:00:47.6]} 22.
Rb7 {[%clk 0:01:27.4]} 22... Ne6 {[%clk 0:00:42]} 23. Bd4 {[%clk 0:01:05.1]}
23... Qxe4 {[%clk 0:00:26.1]} 24. Rb8+ {[%clk 0:01:02.4]} 24... Rf8 {[%clk
0:00:20.2]} 25. Rfb1 {[%clk 0:01:00.8]} 25... h6 {[%clk 0:00:13.8]} 26. Rxf8+
{[%clk 0:00:56.9]} 26... Kxf8 {[%clk 0:00:13.2]} 27. Bxg7+ {[%clk 0:00:54.8]}
27... Kxg7 {[%clk 0:00:14.1]} 28. Qxe4 {[%clk 0:00:54]} 1-0

[Event "*** SCC Grand Prix: Titled Tuesday Blitz"]
[Site "Chess.com"]
[Date "2020.07.07"]
[Round "5"]
[White "Xeniya2005"]
[Black "cukin84"]
[Result "1-0"]
[WhiteElo "2364"]
[BlackElo "2171"]
[TimeControl "180+1"]
[EndTime "10:54:43 PDT"]
[Termination "Xeniya2005 won by resignation"]

1. e4 {[%clk 0:03:00.9]} 1... c6 {[%clk 0:02:59.8]} 2. d4 {[%clk 0:03:00.4]}
2... d5 {[%clk 0:03:00]} 3. Nd2 {[%clk 0:03:00.9]} 3... a6 {[%clk 0:02:58.9]} 4.
c3 {[%clk 0:02:53.9]} 4... dxe4 {[%clk 0:02:55.1]} 5. Nxe4 {[%clk 0:02:54.8]}
5... Bf5 {[%clk 0:02:54.3]} 6. Ng3 {[%clk 0:02:54.6]} 6... Bg6 {[%clk
0:02:54.5]} 7. h4 {[%clk 0:02:53.5]} 7... h6 {[%clk 0:02:53.7]} 8. Nf3 {[%clk
0:02:53]} 8... Nd7 {[%clk 0:02:52.3]} 9. h5 {[%clk 0:02:51]} 9... Bh7 {[%clk
0:02:51.8]} 10. Bd3 {[%clk 0:02:51.9]} 10... Bxd3 {[%clk 0:02:51.3]} 11. Qxd3
{[%clk 0:02:52.8]} 11... Ngf6 {[%clk 0:02:50.3]} 12. Bd2 {[%clk 0:02:53.2]}
12... e6 {[%clk 0:02:50.4]} 13. O-O-O {[%clk 0:02:52.7]} 13... Qc7 {[%clk
0:02:48.2]} 14. Ne4 {[%clk 0:02:52]} 14... Nxe4 {[%clk 0:02:47.4]} 15. Qxe4
{[%clk 0:02:52.9]} 15... Nf6 {[%clk 0:02:47.5]} 16. Qe2 {[%clk 0:02:53.8]} 16...
Bd6 {[%clk 0:02:46.8]} 17. g3 {[%clk 0:02:51.5]} 17... O-O {[%clk 0:02:42.4]}
18. g4 {[%clk 0:02:46.9]} 18... Bf4 {[%clk 0:02:39.7]} 19. g5 {[%clk 0:02:45.7]}
19... hxg5 {[%clk 0:02:32.1]} 20. Nxg5 {[%clk 0:02:43.7]} 20... Nd5 {[%clk
0:02:25.6]} 21. Qd3 {[%clk 0:02:28]} 21... Bxd2+ {[%clk 0:02:24.6]} 22. Rxd2
{[%clk 0:02:26.9]} 22... Nf6 {[%clk 0:02:05.8]} 23. Qf3 {[%clk 0:02:21.1]} 23...
Qa5 {[%clk 0:01:58]} 24. Rg1 {[%clk 0:01:58.5]} 24... Qxa2 {[%clk 0:01:56.7]}
25. Rdd1 {[%clk 0:01:54.2]} 25... Qa1+ {[%clk 0:01:40.8]} 26. Kc2 {[%clk
0:01:52.6]} 26... Qa4+ {[%clk 0:01:40.5]} 27. Kd2 {[%clk 0:01:51.7]} 27... Qb5
{[%clk 0:01:38.8]} 28. h6 {[%clk 0:01:41.2]} 28... Qxb2+ {[%clk 0:01:19.2]} 29.
Ke1 {[%clk 0:01:39.3]} 29... Nd5 {[%clk 0:01:19.2]} 30. Ne4 {[%clk 0:01:01.6]}
30... g6 {[%clk 0:01:14.7]} 31. Nf6+ {[%clk 0:00:47.9]} 31... Kh8 {[%clk
0:00:58.8]} 32. Nxd5 {[%clk 0:00:46.2]} 32... f5 {[%clk 0:00:56.8]} 33. Qg3
{[%clk 0:00:34]} 33... exd5 {[%clk 0:00:53.3]} 34. Qe5+ {[%clk 0:00:33.2]} 1-0

[Event "*** SCC Grand Prix: Titled Tuesday Blitz"]
[Site "Chess.com"]
[Date "2020.07.07"]
[Round "5"]
[White "coalescenet"]
[Black "ammarzooqi"]
[Result "1-0"]
[WhiteElo "2393"]
[BlackElo "2176"]
[TimeControl "180+1"]
[EndTime "10:54:45 PDT"]
[Termination "coalescenet won by resignation"]

1. d4 {[%clk 0:03:00.9]} 1... Nf6 {[%clk 0:02:59.7]} 2. c4 {[%clk 0:02:56]} 2...
g6 {[%clk 0:02:59.6]} 3. Nc3 {[%clk 0:02:54]} 3... d5 {[%clk 0:02:59.5]} 4. Bg5
{[%clk 0:02:51]} 4... dxc4 {[%clk 0:02:52.2]} 5. e3 {[%clk 0:02:44]} 5... Bg7
{[%clk 0:02:50.9]} 6. Bxc4 {[%clk 0:02:43]} 6... O-O {[%clk 0:02:50.7]} 7. h3
{[%clk 0:02:38.5]} 7... c5 {[%clk 0:02:44.4]} 8. Nf3 {[%clk 0:02:37.2]} 8... Nc6
{[%clk 0:02:41.7]} 9. d5 {[%clk 0:02:33.4]} 9... Na5 {[%clk 0:02:37.1]} 10. Qe2
{[%clk 0:02:24.6]} 10... Nxc4 {[%clk 0:02:34.6]} 11. Qxc4 {[%clk 0:02:24.9]}
11... b6 {[%clk 0:02:31.4]} 12. O-O {[%clk 0:02:20]} 12... h6 {[%clk 0:02:15]}
13. Bf4 {[%clk 0:02:13.5]} 13... Ne8 {[%clk 0:02:12.3]} 14. Rfe1 {[%clk
0:02:00.8]} 14... Nd6 {[%clk 0:02:09.7]} 15. Qd3 {[%clk 0:01:52.8]} 15... f5
{[%clk 0:02:07.2]} 16. Be5 {[%clk 0:01:49.2]} 16... Bb7 {[%clk 0:01:55.1]} 17.
a4 {[%clk 0:01:47.3]} 17... Qd7 {[%clk 0:01:45.7]} 18. Bxg7 {[%clk 0:01:40.1]}
18... Kxg7 {[%clk 0:01:45.3]} 19. Ne5 {[%clk 0:01:40.7]} 19... Qe8 {[%clk
0:01:43.3]} 20. Qe2 {[%clk 0:01:28.6]} 20... Rf6 {[%clk 0:01:42.4]} 21. Rad1
{[%clk 0:01:27.3]} 21... Rd8 {[%clk 0:01:39.7]} 22. Nd3 {[%clk 0:01:26.3]} 22...
Ne4 {[%clk 0:01:35.4]} 23. Nf4 {[%clk 0:01:21.9]} 23... g5 {[%clk 0:01:23.6]}
24. Nh5+ {[%clk 0:01:02.2]} 24... Kg6 {[%clk 0:01:23.1]} 25. Nxe4 {[%clk
0:01:00.3]} 25... fxe4 {[%clk 0:01:21.1]} 26. Nxf6 {[%clk 0:00:59.6]} 26... exf6
{[%clk 0:01:14.7]} 27. Qc4 {[%clk 0:00:55.5]} 27... Rd6 {[%clk 0:01:11.1]} 28.
b4 {[%clk 0:00:53.9]} 28... Qxa4 {[%clk 0:01:08.8]} 29. Qxe4+ {[%clk 0:00:49.2]}
29... Kf7 {[%clk 0:01:07.7]} 30. Qh7+ {[%clk 0:00:49]} 30... Ke8 {[%clk
0:01:05.2]} 31. bxc5 {[%clk 0:00:45.1]} 31... Rxd5 {[%clk 0:00:54.6]} 32. Qg8+
{[%clk 0:00:44.3]} 32... Ke7 {[%clk 0:00:53.6]} 33. Rxd5 {[%clk 0:00:44.4]}
33... Qb4 {[%clk 0:00:50.8]} 34. Red1 {[%clk 0:00:40]} 1-0

[Event "*** SCC Grand Prix: Titled Tuesday Blitz"]
[Site "Chess.com"]
[Date "2020.07.07"]
[Round "5"]
[White "mirochka"]
[Black "guillejr"]
[Result "1-0"]
[WhiteElo "2122"]
[BlackElo "1941"]
[TimeControl "180+1"]
[EndTime "10:54:46 PDT"]
[Termination "mirochka won by resignation"]

1. e4 {[%clk 0:03:00.9]} 1... c5 {[%clk 0:02:59.9]} 2. b4 {[%clk 0:02:59.9]}
2... cxb4 {[%clk 0:02:56.2]} 3. a3 {[%clk 0:02:59.9]} 3... d5 {[%clk 0:02:50.7]}
4. exd5 {[%clk 0:02:59.1]} 4... Qxd5 {[%clk 0:02:51.6]} 5. Nf3 {[%clk
0:02:58.5]} 5... g6 {[%clk 0:02:41.3]} 6. Bb2 {[%clk 0:02:55.2]} 6... Nf6 {[%clk
0:02:41.8]} 7. axb4 {[%clk 0:02:50.2]} 7... Bg7 {[%clk 0:02:39]} 8. b5 {[%clk
0:02:38.3]} 8... O-O {[%clk 0:02:31.4]} 9. Be2 {[%clk 0:02:37.8]} 9... Bg4
{[%clk 0:02:11.3]} 10. c4 {[%clk 0:02:26.5]} 10... Qe6 {[%clk 0:01:21.9]} 11.
O-O {[%clk 0:02:23.1]} 11... Nbd7 {[%clk 0:01:21.2]} 12. d3 {[%clk 0:02:14.2]}
12... Nc5 {[%clk 0:01:13]} 13. Nbd2 {[%clk 0:01:57.8]} 13... Rfd8 {[%clk
0:01:08.3]} 14. h3 {[%clk 0:01:53.2]} 14... Bf5 {[%clk 0:00:40.8]} 15. Nd4
{[%clk 0:01:37.1]} 15... Qd7 {[%clk 0:00:28.5]} 16. N2f3 {[%clk 0:01:18.1]}
16... Ne8 {[%clk 0:00:18.9]} 17. Nxf5 {[%clk 0:01:09.1]} 17... Bxb2 {[%clk
0:00:16.8]} 18. Ra2 {[%clk 0:01:08.6]} 18... Bf6 {[%clk 0:00:15.1]} 19. Nh6+
{[%clk 0:00:56.9]} 19... Kg7 {[%clk 0:00:14.5]} 20. Ng4 {[%clk 0:00:56.6]} 20...
Nxd3 {[%clk 0:00:13.1]} 21. Rd2 {[%clk 0:00:53.9]} 21... Nxf2 {[%clk 0:00:08.2]}
22. Rxd7 {[%clk 0:00:52.3]} 22... Nxd1 {[%clk 0:00:07.6]} 23. Rfxd1 {[%clk
0:00:50.4]} 23... e6 {[%clk 0:00:04.1]} 24. Nxf6 {[%clk 0:00:48.3]} 24... Kxf6
{[%clk 0:00:05]} 25. Rxd8 {[%clk 0:00:46.7]} 1-0

[Event "*** SCC Grand Prix: Titled Tuesday Blitz"]
[Site "Chess.com"]
[Date "2020.07.07"]
[Round "5"]
[White "margarita_2703"]
[Black "Balla_Tamas"]
[Result "1-0"]
[WhiteElo "2397"]
[BlackElo "2510"]
[TimeControl "180+1"]
[EndTime "10:54:48 PDT"]
[Termination "margarita_2703 won by resignation"]

1. Nf3 {[%clk 0:03:00.9]} 1... c5 {[%clk 0:02:57.7]} 2. c4 {[%clk 0:02:55.1]}
2... Nc6 {[%clk 0:02:54.3]} 3. Nc3 {[%clk 0:02:52.9]} 3... g6 {[%clk 0:02:53.5]}
4. d4 {[%clk 0:02:51]} 4... cxd4 {[%clk 0:02:53.5]} 5. Nxd4 {[%clk 0:02:49.8]}
5... Bg7 {[%clk 0:02:54.1]} 6. Nxc6 {[%clk 0:02:38.3]} 6... bxc6 {[%clk
0:02:53.1]} 7. e4 {[%clk 0:02:35.9]} 7... d6 {[%clk 0:02:52.3]} 8. g3 {[%clk
0:02:30.1]} 8... Rb8 {[%clk 0:02:50.3]} 9. Bg2 {[%clk 0:02:28.5]} 9... Qc7
{[%clk 0:02:50.3]} 10. O-O {[%clk 0:02:27.3]} 10... Nf6 {[%clk 0:02:49.9]} 11.
Qc2 {[%clk 0:02:20.1]} 11... O-O {[%clk 0:02:48.8]} 12. b3 {[%clk 0:02:13.6]}
12... a5 {[%clk 0:02:48.5]} 13. Bb2 {[%clk 0:02:11.2]} 13... Nd7 {[%clk
0:02:44.1]} 14. Rad1 {[%clk 0:02:04.8]} 14... Nc5 {[%clk 0:02:43.8]} 15. Rfe1
{[%clk 0:02:01.6]} 15... a4 {[%clk 0:02:43.7]} 16. Nxa4 {[%clk 0:01:56.8]} 16...
Nxa4 {[%clk 0:02:42.3]} 17. Bxg7 {[%clk 0:01:56.1]} 17... Kxg7 {[%clk
0:02:42.6]} 18. bxa4 {[%clk 0:01:52.9]} 18... c5 {[%clk 0:02:31.9]} 19. Qc3+
{[%clk 0:01:49.1]} 19... f6 {[%clk 0:02:31.8]} 20. Rb1 {[%clk 0:01:42.6]} 20...
Bd7 {[%clk 0:02:26]} 21. Rb5 {[%clk 0:01:37.7]} 21... Bxb5 {[%clk 0:02:23.7]}
22. axb5 {[%clk 0:01:35.7]} 22... Ra8 {[%clk 0:02:19.7]} 23. e5 {[%clk
0:01:32.6]} 23... Rxa2 {[%clk 0:02:17.9]} 24. exf6+ {[%clk 0:01:32]} 24... Rxf6
{[%clk 0:02:17.2]} 25. b6 {[%clk 0:01:28.8]} 25... Qd8 {[%clk 0:02:10.6]} 26. b7
{[%clk 0:01:25.9]} 26... Rxf2 {[%clk 0:01:38.2]} 27. Qe3 {[%clk 0:01:19.7]}
27... e5 {[%clk 0:01:26.8]} 28. Qxf2 {[%clk 0:01:15.4]} 28... Rxf2 {[%clk
0:01:25.6]} 29. Kxf2 {[%clk 0:01:15.5]} 29... Qb6 {[%clk 0:01:14.5]} 30. Kg1
{[%clk 0:01:10]} 30... Kf6 {[%clk 0:01:10.6]} 31. Rf1+ {[%clk 0:01:07.2]} 31...
Ke7 {[%clk 0:01:10.1]} 32. Bd5 {[%clk 0:01:05.4]} 32... Ke8 {[%clk 0:00:56.2]}
33. Rf7 {[%clk 0:01:00.4]} 33... e4 {[%clk 0:00:56.4]} 34. Rxh7 {[%clk 0:00:58]}
34... Qb1+ {[%clk 0:00:54.3]} 35. Kg2 {[%clk 0:00:55.5]} 35... Qb2+ {[%clk
0:00:55.2]} 36. Kh3 {[%clk 0:00:53.4]} 36... e3 {[%clk 0:00:55.1]} 37. b8=Q+
{[%clk 0:00:50.2]} 37... Qxb8 {[%clk 0:00:54.2]} 38. Rh8+ {[%clk 0:00:47.7]}
38... Ke7 {[%clk 0:00:54]} 39. Rxb8 {[%clk 0:00:44.1]} 39... Kf6 {[%clk
0:00:54]} 40. Rb1 {[%clk 0:00:43.5]} 40... Ke5 {[%clk 0:00:52.3]} 41. Re1 {[%clk
0:00:43.1]} 41... Kd4 {[%clk 0:00:52.2]} 42. Kg4 {[%clk 0:00:43.1]} 42... Kd3
{[%clk 0:00:52.8]} 43. Kf3 {[%clk 0:00:43.2]} 43... Kd2 {[%clk 0:00:53.7]} 44.
Rxe3 {[%clk 0:00:43.1]} 1-0

[Event "*** SCC Grand Prix: Titled Tuesday Blitz"]
[Site "Chess.com"]
[Date "2020.07.07"]
[Round "5"]
[White "boo786"]
[Black "ViktoriyaTarasova"]
[Result "1-0"]
[WhiteElo "2423"]
[BlackElo "2245"]
[TimeControl "180+1"]
[EndTime "10:54:48 PDT"]
[Termination "boo786 won by resignation"]

1. Nf3 {[%clk 0:03:00.9]} 1... Nf6 {[%clk 0:02:59.5]} 2. c4 {[%clk 0:02:59.4]}
2... c6 {[%clk 0:02:54.3]} 3. Nc3 {[%clk 0:02:57.9]} 3... d5 {[%clk 0:02:53.6]}
4. e3 {[%clk 0:02:56.8]} 4... Bf5 {[%clk 0:02:52.1]} 5. cxd5 {[%clk 0:02:52.6]}
5... cxd5 {[%clk 0:02:48.7]} 6. Qb3 {[%clk 0:02:51]} 6... Bc8 {[%clk 0:02:44.2]}
7. d4 {[%clk 0:02:44.9]} 7... e6 {[%clk 0:02:42.7]} 8. Bd2 {[%clk 0:02:42.1]}
8... Bd6 {[%clk 0:02:37]} 9. Nb5 {[%clk 0:02:40.6]} 9... a6 {[%clk 0:02:32.9]}
10. Nxd6+ {[%clk 0:02:39.5]} 10... Qxd6 {[%clk 0:02:33.4]} 11. Bb4 {[%clk
0:02:34.5]} 11... Qd8 {[%clk 0:02:31.9]} 12. Ne5 {[%clk 0:02:29.6]} 12... Nbd7
{[%clk 0:02:23.8]} 13. Nxd7 {[%clk 0:02:21.8]} 13... Nxd7 {[%clk 0:02:10.9]} 14.
Bd3 {[%clk 0:02:20.1]} 14... f5 {[%clk 0:02:08.7]} 15. g4 {[%clk 0:02:02.3]}
15... Nf6 {[%clk 0:01:56.8]} 16. gxf5 {[%clk 0:01:42.8]} 16... exf5 {[%clk
0:01:56]} 17. O-O-O {[%clk 0:01:39]} 17... Be6 {[%clk 0:01:51.9]} 18. Kb1 {[%clk
0:01:37.8]} 18... Kf7 {[%clk 0:01:50.2]} 19. Rhg1 {[%clk 0:01:28.1]} 19... g6
{[%clk 0:01:47.5]} 20. Rc1 {[%clk 0:01:22.4]} 20... Qd7 {[%clk 0:01:39.9]} 21.
Qa3 {[%clk 0:01:18.4]} 21... Rhc8 {[%clk 0:01:35]} 22. Bd6 {[%clk 0:01:15.3]}
22... Rxc1+ {[%clk 0:01:33.1]} 23. Rxc1 {[%clk 0:01:15.1]} 23... Rc8 {[%clk
0:01:33.7]} 24. Rxc8 {[%clk 0:00:58.1]} 24... Qxc8 {[%clk 0:01:32.6]} 25. f3
{[%clk 0:00:54.8]} 25... Nd7 {[%clk 0:01:17.1]} 26. Qb4 {[%clk 0:00:44.9]} 26...
Qc6 {[%clk 0:01:13.7]} 27. Bf4 {[%clk 0:00:38.9]} 27... b5 {[%clk 0:01:04.9]}
28. Bg5 {[%clk 0:00:33.6]} 28... Kg8 {[%clk 0:00:51.4]} 29. Qe7 {[%clk
0:00:31.9]} 29... Nf8 {[%clk 0:00:47.6]} 30. Bh6 {[%clk 0:00:29.9]} 1-0

[Event "*** SCC Grand Prix: Titled Tuesday Blitz"]
[Site "Chess.com"]
[Date "2020.07.07"]
[Round "5"]
[White "VishnuPrasanna"]
[Black "suyu28"]
[Result "1-0"]
[WhiteElo "2749"]
[BlackElo "2575"]
[TimeControl "180+1"]
[EndTime "10:54:49 PDT"]
[Termination "VishnuPrasanna won by resignation"]

1. e4 {[%clk 0:03:00.9]} 1... e5 {[%clk 0:02:59.4]} 2. Nf3 {[%clk 0:02:58.6]}
2... Nc6 {[%clk 0:02:59.2]} 3. Bc4 {[%clk 0:02:59.1]} 3... Nf6 {[%clk
0:02:57.9]} 4. d3 {[%clk 0:02:59.6]} 4... Bc5 {[%clk 0:02:57.4]} 5. c3 {[%clk
0:02:59.4]} 5... a6 {[%clk 0:02:57.4]} 6. O-O {[%clk 0:02:58]} 6... d6 {[%clk
0:02:57.5]} 7. h3 {[%clk 0:02:57.6]} 7... Ba7 {[%clk 0:02:57.4]} 8. Re1 {[%clk
0:02:55.5]} 8... h6 {[%clk 0:02:56.3]} 9. d4 {[%clk 0:02:55.7]} 9... O-O {[%clk
0:02:48.6]} 10. Bb3 {[%clk 0:02:55.1]} 10... Re8 {[%clk 0:02:41.8]} 11. Bc2
{[%clk 0:02:53.7]} 11... exd4 {[%clk 0:02:23.3]} 12. cxd4 {[%clk 0:02:45.9]}
12... Nb4 {[%clk 0:02:22.7]} 13. Nc3 {[%clk 0:02:45]} 13... Nxc2 {[%clk
0:02:22.5]} 14. Qxc2 {[%clk 0:02:44.8]} 14... Be6 {[%clk 0:02:20.4]} 15. Bf4
{[%clk 0:02:43.4]} 15... Rc8 {[%clk 0:02:19.5]} 16. Rad1 {[%clk 0:02:40.3]}
16... c6 {[%clk 0:02:10.1]} 17. Qd2 {[%clk 0:02:39.8]} 17... d5 {[%clk
0:02:04.4]} 18. e5 {[%clk 0:02:39]} 18... Ne4 {[%clk 0:02:04.4]} 19. Nxe4 {[%clk
0:02:34.2]} 19... dxe4 {[%clk 0:02:05.3]} 20. Rxe4 {[%clk 0:02:34.7]} 20... Bd5
{[%clk 0:01:52.8]} 21. Re3 {[%clk 0:02:35]} 21... Bxa2 {[%clk 0:01:49.1]} 22. b3
{[%clk 0:02:31.3]} 22... c5 {[%clk 0:01:41.5]} 23. Qxa2 {[%clk 0:02:29.5]} 23...
cxd4 {[%clk 0:01:41.6]} 24. Red3 {[%clk 0:02:29.9]} 24... Qd5 {[%clk 0:01:37]}
25. Nxd4 {[%clk 0:02:17.1]} 25... Qe4 {[%clk 0:01:36.8]} 26. Qd2 {[%clk
0:02:13.7]} 26... Rcd8 {[%clk 0:01:33.6]} 27. Bg3 {[%clk 0:02:10.9]} 27... h5
{[%clk 0:01:31.1]} 28. Nf3 {[%clk 0:02:08.8]} 28... Rc8 {[%clk 0:01:25.4]} 29.
Qf4 {[%clk 0:02:02.2]} 29... Qg6 {[%clk 0:01:22.3]} 30. Rd6 {[%clk 0:02:00.9]}
30... Qc2 {[%clk 0:01:19.3]} 31. Ng5 {[%clk 0:01:57.7]} 31... Rf8 {[%clk
0:01:18.9]} 32. Rd7 {[%clk 0:01:52.3]} 32... Qxb3 {[%clk 0:01:17.9]} 33. Qe4
{[%clk 0:01:42.3]} 33... g6 {[%clk 0:01:14.8]} 34. R7d3 {[%clk 0:01:39.5]} 34...
Qc4 {[%clk 0:01:09.4]} 35. Qxc4 {[%clk 0:01:35]} 35... Rxc4 {[%clk 0:01:10.3]}
36. Rd7 {[%clk 0:01:35.5]} 36... Rb4 {[%clk 0:01:02.7]} 37. h4 {[%clk
0:01:34.4]} 37... a5 {[%clk 0:00:59.9]} 38. e6 {[%clk 0:01:33.8]} 38... fxe6
{[%clk 0:00:54.5]} 39. Nxe6 {[%clk 0:01:33.2]} 39... Re8 {[%clk 0:00:54.8]} 40.
Nc7 {[%clk 0:01:16.6]} 40... Rf8 {[%clk 0:00:48.4]} 41. Nd5 {[%clk 0:01:16.8]}
41... Rg4 {[%clk 0:00:44.9]} 42. Ne7+ {[%clk 0:01:15.9]} 42... Kf7 {[%clk
0:00:43.7]} 43. Nf5+ {[%clk 0:01:15]} 43... Ke6 {[%clk 0:00:40.2]} 44. Ng7+
{[%clk 0:01:14.5]} 1-0

[Event "*** SCC Grand Prix: Titled Tuesday Blitz"]
[Site "Chess.com"]
[Date "2020.07.07"]
[Round "5"]
[White "googlegoom"]
[Black "Angel_Hranitel_37"]
[Result "1-0"]
[WhiteElo "2529"]
[BlackElo "2381"]
[TimeControl "180+1"]
[EndTime "10:54:49 PDT"]
[Termination "googlegoom won on time"]

1. Nf3 {[%clk 0:03:00.9]} 1... Nf6 {[%clk 0:03:00.3]} 2. b3 {[%clk 0:03:00.6]}
2... g6 {[%clk 0:03:00]} 3. Bb2 {[%clk 0:03:01]} 3... Bg7 {[%clk 0:03:00.9]} 4.
e3 {[%clk 0:03:01.2]} 4... O-O {[%clk 0:03:00.4]} 5. d4 {[%clk 0:03:02.1]} 5...
b6 {[%clk 0:02:59.4]} 6. Be2 {[%clk 0:03:02.5]} 6... Bb7 {[%clk 0:03:00.3]} 7.
O-O {[%clk 0:03:02.9]} 7... d5 {[%clk 0:02:57.3]} 8. Nbd2 {[%clk 0:03:03.2]}
8... c5 {[%clk 0:02:57.5]} 9. c4 {[%clk 0:03:03.7]} 9... e6 {[%clk 0:02:57.6]}
10. Rc1 {[%clk 0:03:04]} 10... Nbd7 {[%clk 0:02:51.1]} 11. Qc2 {[%clk
0:03:04.1]} 11... Rc8 {[%clk 0:02:51]} 12. Qb1 {[%clk 0:03:04.4]} 12... Qc7
{[%clk 0:02:49.6]} 13. dxc5 {[%clk 0:03:03.6]} 13... bxc5 {[%clk 0:02:20.4]} 14.
Qa1 {[%clk 0:02:55.8]} 14... Rfd8 {[%clk 0:02:18.1]} 15. Rfd1 {[%clk 0:02:55.6]}
15... Qa5 {[%clk 0:01:57.7]} 16. h3 {[%clk 0:02:47.7]} 16... Ne8 {[%clk
0:01:27.8]} 17. Nh2 {[%clk 0:02:09.4]} 17... Bxb2 {[%clk 0:00:42.5]} 18. Qxb2
{[%clk 0:02:09.2]} 18... Ndf6 {[%clk 0:00:40]} 19. Ndf3 {[%clk 0:02:01.5]} 19...
h5 {[%clk 0:00:30]} 20. Ne5 {[%clk 0:02:00.4]} 20... d4 {[%clk 0:00:27.6]} 21.
exd4 {[%clk 0:01:55.8]} 21... cxd4 {[%clk 0:00:28.5]} 22. Bf3 {[%clk 0:01:55.1]}
22... Qxe5 {[%clk 0:00:18.1]} 23. Bxb7 {[%clk 0:01:54.6]} 23... Rc7 {[%clk
0:00:18.4]} 24. Bf3 {[%clk 0:01:54.5]} 24... Qf4 {[%clk 0:00:15.4]} 25. Qd2
{[%clk 0:01:53.6]} 25... Qxd2 {[%clk 0:00:14.8]} 26. Rxd2 {[%clk 0:01:54.5]}
26... e5 {[%clk 0:00:15.7]} 27. Re1 {[%clk 0:01:53.4]} 27... Re7 {[%clk
0:00:15.3]} 28. Bd1 {[%clk 0:01:44.7]} 28... e4 {[%clk 0:00:14.7]} 29. Nf3
{[%clk 0:01:43.3]} 29... Re6 {[%clk 0:00:08.4]} 30. Ng5 {[%clk 0:01:41.2]} 30...
Re5 {[%clk 0:00:07.1]} 31. h4 {[%clk 0:01:41.8]} 31... Nd6 {[%clk 0:00:03.3]}
32. Bc2 {[%clk 0:01:38.7]} 32... Nb7 {[%clk 0:00:02.7]} 33. Nxe4 {[%clk
0:01:29.9]} 33... Nxe4 {[%clk 0:00:03.2]} 34. Rxe4 {[%clk 0:01:30.2]} 34... Rxe4
{[%clk 0:00:03]} 35. Bxe4 {[%clk 0:01:31.1]} 35... Nc5 {[%clk 0:00:03.5]} 36.
Bd5 {[%clk 0:01:31.7]} 36... d3 {[%clk 0:00:03.6]} 37. b4 {[%clk 0:01:28.5]}
37... Na6 {[%clk 0:00:04.1]} 38. a3 {[%clk 0:01:29]} 38... Nc7 {[%clk
0:00:03.3]} 39. Rxd3 {[%clk 0:01:28.8]} 39... Re8 {[%clk 0:00:02.5]} 40. Kf1
{[%clk 0:01:28.2]} 1-0